bitfinex/quotes_BTCUSD_20240721
["timestamp","ask_amount","ask_price","bid_price","bid_amount"]
[1721597322429,0.00084,67947.0,67946.0,0.15501991]
[1721597322867,0.00084,67947.0,67946.0,0.16901991]
[1721597323301,0.00084,67947.0,67946.0,0.29124595]
[1721597324848,0.00084,67947.0,67946.0,0.27724595]
[1721597325056,0.00084,67947.0,67946.0,0.29124595]
[1721597325265,0.00084,67947.0,67946.0,0.28324595]
[1721597325479,0.00084,67947.0,67946.0,0.29224595]
[1721597325689,0.00084,67947.0,67946.0,0.29224275]
[1721597325894,0.00084,67947.0,67946.0,0.28324275]
[1721597326313,0.00084,67947.0,67946.0,0.29194275]
[1721597328833,0.00084,67947.0,67946.0,0.16971991]
[1721597328987,0.00084,67947.0,67946.0,0.29194123]
[1721597332240,0.00084,67947.0,67946.0,0.29194541]
[1721597332508,0.880307,67947.0,67946.0,0.1452353]
[1721597332749,0.880307,67947.0,67946.0,0.023]
[1721597332750,1.174654,67947.0,67946.0,0.023]
[1721597333225,1.28811923,67947.0,67946.0,0.023]
[1721597333794,1.174654,67947.0,67946.0,0.023]
[1721597334034,1.22235626,67947.0,67946.0,0.023]
[1721597334422,1.174654,67947.0,67946.0,0.023]
[1721597335310,1.174654,67947.0,67930.0,0.1]
[1721597335311,0.147195,67938.0,67930.0,0.1]
[1721597335315,0.294356,67945.0,67930.0,0.1]
[1721597335536,0.294356,67945.0,67929.0,0.085]
[1721597335537,0.0613,67940.0,67931.0,0.26926669]
[1721597335780,0.147199,67935.0,67932.0,0.12224678]
[1721597336000,0.1441,67934.0,67933.0,0.12225168]
[1721597336228,0.147209,67931.0,67928.0,0.14701991]
[1721597336508,0.002794,67930.0,67929.0,0.22225594]
[1721597336731,0.438503,67934.0,67929.0,0.36927585]
[1721597336960,0.147207,67932.0,67930.0,0.26927585]
[1721597337187,0.147208,67931.0,67930.0,0.14701991]
[1721597337445,0.147208,67931.0,67927.0,0.000924]
[1721597337446,0.441643,67928.0,67927.0,0.000924]
[1721597337686,0.147214,67928.0,67927.0,0.12318464]
[1721597338392,0.147214,67928.0,67927.0,0.12318592]
[1721597338619,0.147214,67928.0,67927.0,0.13718592]
[1721597340129,0.147214,67928.0,67927.0,0.15018592]
[1721597340830,0.147214,67928.0,67927.0,0.027924]
[1721597341800,0.1441,67934.0,67927.0,0.29720504]
[1721597342066,0.1441,67934.0,67928.0,0.41768104]
[1721597342067,0.002794,67933.0,67928.0,0.41768104]
[1721597342320,0.147202,67934.0,67929.0,0.20726113]
[1721597342560,0.147202,67934.0,67930.0,0.26928104]
[1721597342800,0.147206,67932.0,67930.0,0.14701991]
[1721597343062,0.1425,67939.0,67930.0,0.14701991]
[1721597343063,0.147205,67933.0,67930.0,0.14701991]
[1721597343283,0.294395,67936.0,67930.0,0.14701991]
[1721597343503,0.147202,67934.0,67931.0,0.12224444]
[1721597343756,0.147204,67933.0,67930.0,0.14701991]
[1721597343978,0.147204,67933.0,67931.0,0.12224906]
[1721597344277,0.147204,67933.0,67930.0,0.15301991]
[1721597344498,0.147204,67933.0,67931.0,0.12224899]
[1721597344723,0.147204,67933.0,67930.0,0.16501991]
[1721597344945,0.147204,67933.0,67931.0,0.12224931]
[1721597345164,0.147204,67933.0,67930.0,0.15901991]
[1721597345396,0.294399,67935.0,67931.0,0.14124931]
[1721597345606,0.147204,67933.0,67931.0,0.019]
[1721597345887,0.147204,67933.0,67931.0,0.013]
[1721597346104,0.436882,67939.0,67930.0,0.14701991]
[1721597346105,0.29439,67937.0,67930.0,0.14701991]
[1721597346346,0.436882,67939.0,67931.0,0.1222488]
[1721597346578,0.147202,67934.0,67930.0,0.16001991]
[1721597346827,0.147202,67934.0,67931.0,0.12924913]
[1721597347055,0.147202,67934.0,67931.0,0.007]
[1721597347957,0.147202,67934.0,67931.0,0.02]
[1721597348147,0.147202,67934.0,67931.0,0.013]
[1721597348659,0.147202,67934.0,67931.0,0.014]
[1721597348879,0.147202,67934.0,67931.0,0.013]
[1721597349093,0.147202,67934.0,67931.0,0.025]
[1721597349322,0.147202,67934.0,67931.0,0.031]
[1721597349541,0.147198,67936.0,67931.0,0.031]
[1721597349774,0.147199,67935.0,67931.0,0.031]
[1721597350009,0.29439,67937.0,67931.0,0.031]
[1721597350227,0.29439,67937.0,67932.0,0.085]
[1721597350228,0.147198,67936.0,67932.0,0.085]
[1721597351412,0.147199,67935.0,67932.0,0.085]
[1721597351659,0.147199,67935.0,67932.0,0.095]
[1721597352328,0.29439,67937.0,67932.0,0.085]
[1721597352552,0.147197,67936.0,67932.0,0.085]
[1721597352775,0.147197,67936.0,67932.0,0.096]
[1721597352990,0.147197,67936.0,67932.0,0.1]
[1721597354099,0.147197,67936.0,67932.0,0.089]
[1721597354306,0.147197,67936.0,67932.0,0.099]
[1721597355231,0.147197,67936.0,67933.0,0.12224858]
[1721597355441,0.147197,67936.0,67932.0,0.099]
[1721597355646,0.147197,67936.0,67933.0,0.12224834]
[1721597355858,0.147197,67936.0,67932.0,0.099]
[1721597356070,0.147197,67936.0,67933.0,0.12224858]
[1721597356280,0.147197,67936.0,67932.0,0.095]
[1721597356493,0.147197,67936.0,67933.0,0.12224859]
[1721597356705,0.147197,67936.0,67932.0,0.095]
[1721597356916,0.147197,67936.0,67933.0,0.12224858]
[1721597357131,0.147197,67936.0,67932.0,0.095]
[1721597357339,0.147197,67936.0,67933.0,0.12224859]
[1721597357549,0.147197,67936.0,67933.0,0.004]
[1721597357754,0.147199,67935.0,67933.0,0.004]
[1721597357965,0.147199,67935.0,67933.0,0.014]
[1721597358173,0.147199,67935.0,67932.0,0.085]
[1721597358385,0.147199,67935.0,67933.0,0.12224859]
[1721597358596,0.147199,67935.0,67932.0,0.089]
[1721597358597,0.441586,67937.0,67934.0,0.12224859]
[1721597358811,0.441586,67937.0,67932.0,0.099]
[1721597358812,0.147197,67936.0,67932.0,0.099]
[1721597359032,0.147197,67936.0,67933.0,0.12224858]
[1721597359242,0.147197,67936.0,67934.0,0.12224858]
[1721597359669,0.147197,67936.0,67935.0,0.12224776]
[1721597359897,0.438094,67936.0,67933.0,0.016]
[1721597360129,0.1472,67935.0,67934.0,0.1222493]
[1721597360348,0.1472,67935.0,67934.0,0.12224978]
[1721597361713,0.1472,67935.0,67934.0,0.12724978]
[1721597362767,0.1472,67935.0,67934.0,0.12724942]
[1721597363090,0.1472,67935.0,67934.0,0.12724976]
[1721597363740,0.1472,67935.0,67934.0,0.12724991]
[1721597364422,0.1472,67935.0,67934.0,0.13824991]
[1721597369189,0.1472,67935.0,67934.0,0.138249]
[1721597371469,0.441599,67935.0,67934.0,0.138249]
[1721597371900,0.1472,67935.0,67934.0,0.138249]
[1721597372125,0.441599,67935.0,67934.0,0.13824995]
[1721597372560,0.441599,67935.0,67934.0,0.13824982]
[1721597373007,0.1472,67935.0,67934.0,0.13824982]
[1721597373450,0.441599,67935.0,67934.0,0.13824982]
[1721597373901,0.1472,67935.0,67934.0,0.13824982]
[1721597375233,0.1472,67935.0,67934.0,0.13824993]
[1721597377479,0.1437,67936.0,67934.0,0.13824993]
[1721597377757,0.290897,67936.0,67935.0,0.12224993]
[1721597380108,0.290897,67936.0,67935.0,0.12624993]
[1721597380351,1.03817442,67936.0,67935.0,0.12624993]
[1721597380584,1.46819506,67936.0,67935.0,0.004]
[1721597380809,1.32485457,67936.0,67935.0,0.004]
[1721597381028,1.4256514,67936.0,67935.0,0.004]
[1721597381251,1.39605763,67936.0,67935.0,0.004]
[1721597381519,1.38482082,67936.0,67935.0,0.014]
[1721597381740,1.41769342,67936.0,67935.0,0.014]
[1721597381951,1.44138272,67936.0,67935.0,0.01]
[1721597382387,1.56921583,67936.0,67935.0,0.011]
[1721597382808,1.030424,67933.0,67932.0,0.000924]
[1721597383020,1.39288969,67933.0,67932.0,0.000924]
[1721597383229,1.30507614,67933.0,67932.0,0.000924]
[1721597383451,1.25738376,67933.0,67932.0,0.000924]
[1721597383677,1.49215996,67933.0,67932.0,0.000924]
[1721597383894,1.47019068,67933.0,67932.0,0.000924]
[1721597384342,1.40278665,67933.0,67932.0,0.000924]
[1721597384595,1.4731767,67933.0,67932.0,0.000924]
[1721597384853,1.32321405,67933.0,67932.0,0.000924]
[1721597385094,1.25738278,67933.0,67932.0,0.000924]
[1721597385312,1.25738278,67933.0,67932.0,0.001924]
[1721597385997,1.25938278,67933.0,67932.0,0.001924]
[1721597386220,1.30325685,67933.0,67932.0,0.001924]
[1721597387613,1.30324683,67933.0,67932.0,0.001924]
[1721597387840,1.34708121,67933.0,67932.0,0.001924]
[1721597388794,1.30324683,67933.0,67932.0,0.001924]
[1721597389799,1.25938278,67933.0,67932.0,0.001924]
[1721597390024,1.32517886,67933.0,67932.0,0.001924]
[1721597390262,1.25938278,67933.0,67932.0,0.001924]
[1721597390742,1.25938246,67933.0,67932.0,0.001924]
[1721597391204,1.25938227,67933.0,67932.0,0.001924]
[1721597391693,1.91354693,67933.0,67932.0,0.001924]
[1721597392191,1.84777183,67933.0,67932.0,0.001924]
[1721597392419,1.91352259,67933.0,67932.0,0.001924]
[1721597393858,1.91352585,67933.0,67932.0,0.001924]
[1721597395487,1.96352585,67933.0,67932.0,0.001924]
[1721597395712,1.96842481,67933.0,67932.0,0.001924]
[1721597395941,2.0055016,67933.0,67932.0,0.001924]
[1721597396165,2.1150911,67933.0,67932.0,0.001924]
[1721597396399,2.0055016,67933.0,67932.0,0.001924]
[1721597396698,2.0055045,67933.0,67932.0,0.001924]
[1721597396930,2.0055038,67933.0,67932.0,0.001924]
[1721597398322,2.09310836,67933.0,67932.0,0.001924]
[1721597398560,2.0055038,67933.0,67932.0,0.001924]
[1721597399261,2.09309386,67933.0,67932.0,0.001924]
[1721597399964,2.09325108,67933.0,67932.0,0.001924]
[1721597400474,2.05601168,67933.0,67932.0,0.001924]
[1721597400718,2.09325099,67933.0,67932.0,0.001924]
[1721597401189,1.68646159,67933.0,67932.0,0.001924]
[1721597401417,1.12198202,67933.0,67932.0,0.001924]
[1721597401646,1.12198202,67933.0,67932.0,0.150724]
[1721597401647,0.00655802,67933.0,67932.0,0.150724]
[1721597401879,0.002,67933.0,67932.0,0.150724]
[1721597402116,0.002,67933.0,67932.0,0.149724]
[1721597402351,0.002,67933.0,67932.0,0.29674391]
[1721597402595,0.002,67933.0,67932.0,0.29774391]
[1721597402828,0.147189,67940.0,67934.0,0.1445]
[1721597403056,0.147189,67940.0,67935.0,0.0648]
[1721597403306,0.294364,67943.0,67935.0,0.21181991]
[1721597403549,0.147187,67941.0,67935.0,0.21181991]
[1721597403788,0.147189,67940.0,67935.0,0.21181991]
[1721597404527,0.147186,67941.0,67935.0,0.22281991]
[1721597405222,0.147188,67940.0,67935.0,0.22281991]
[1721597405712,0.147185,67942.0,67935.0,0.22281991]
[1721597405941,0.147186,67941.0,67935.0,0.21181991]
[1721597406176,0.295191,67946.0,67935.0,0.22581991]
[1721597406177,0.147189,67940.0,67935.0,0.22581991]
[1721597406365,0.147185,67942.0,67935.0,0.22581991]
[1721597406590,0.147185,67942.0,67935.0,0.22181991]
[1721597406799,0.147187,67941.0,67935.0,0.23281991]
[1721597407053,0.147187,67941.0,67935.0,0.21481991]
[1721597407278,0.147187,67941.0,67935.0,0.22481991]
[1721597407525,0.147187,67941.0,67935.0,0.21481991]
[1721597407743,0.147188,67940.0,67935.0,0.21481991]
[1721597407965,0.147185,67942.0,67935.0,0.22381991]
[1721597408209,0.147188,67940.0,67935.0,0.22081991]
[1721597408643,0.147185,67942.0,67935.0,0.22481991]
[1721597408873,0.07348942,67942.0,67935.0,0.22081991]
[1721597409101,0.147189,67940.0,67935.0,0.22081991]
[1721597409326,0.22067442,67942.0,67935.0,0.22381991]
[1721597409538,0.147187,67941.0,67935.0,0.22381991]
[1721597409753,0.07348942,67942.0,67935.0,0.21481991]
[1721597409754,0.147189,67940.0,67935.0,0.21481991]
[1721597409979,0.22067542,67942.0,67935.0,0.22481991]
[1721597410125,0.147186,67941.0,67935.0,0.22181991]
[1721597410336,0.22067442,67942.0,67935.0,0.21181991]
[1721597410542,0.07348942,67942.0,67935.0,0.21181991]
[1721597410745,0.22067442,67942.0,67935.0,0.22081991]
[1721597410972,0.22067442,67942.0,67935.0,0.21181991]
[1721597411513,0.22067442,67942.0,67935.0,0.22681991]
[1721597411514,0.147188,67940.0,67935.0,0.22681991]
[1721597411730,0.22067542,67942.0,67935.0,0.21681991]
[1721597411952,0.07348942,67942.0,67935.0,0.21181991]
[1721597412254,0.07348942,67942.0,67935.0,0.21481991]
[1721597412473,0.147187,67941.0,67935.0,0.21481991]
[1721597412911,0.22067442,67942.0,67935.0,0.21481991]
[1721597413132,0.51504442,67942.0,67935.0,0.22381991]
[1721597413344,0.147187,67941.0,67935.0,0.22381991]
[1721597413988,0.147187,67941.0,67935.0,0.21481991]
[1721597414422,0.147187,67941.0,67935.0,0.22481991]
[1721597415808,0.147187,67941.0,67935.0,0.22181991]
[1721597416254,0.147187,67941.0,67935.0,0.22581991]
[1721597416700,0.36785842,67942.0,67935.0,0.22581991]
[1721597416701,0.22066742,67945.0,67936.0,0.14701991]
[1721597417372,0.00084,67946.0,67937.0,0.15374368]
[1721597417583,0.00084,67946.0,67941.0,0.142]
[1721597417806,0.00084,67946.0,67944.0,0.14718]
[1721597418019,0.00084,67946.0,67942.0,0.44138791]
[1721597418020,0.00084,67946.0,67945.0,0.14701991]
[1721597418955,0.00084,67946.0,67945.0,0.29419691]
[1721597419175,0.00084,67946.0,67945.0,0.35889691]
[1721597419611,0.00084,67946.0,67945.0,0.43539691]
[1721597419861,0.00084,67946.0,67945.0,1.02410691]
[1721597420085,0.00084,67946.0,67945.0,0.75375191]
[1721597420547,0.00084,67946.0,67945.0,0.74375191]
[1721597420767,0.00084,67946.0,67945.0,0.76975191]
[1721597420988,0.00084,67946.0,67945.0,0.75575191]
[1721597421418,0.00084,67946.0,67945.0,0.76975191]
[1721597421846,0.00084,67946.0,67945.0,0.75775191]
[1721597422312,0.00084,67946.0,67945.0,0.77175191]
[1721597422528,0.00084,67946.0,67945.0,0.74375191]
[1721597422984,0.00084,67946.0,67945.0,0.85775191]
[1721597424982,0.00084,67946.0,67945.0,0.97996409]
[1721597426961,0.00084,67946.0,67945.0,0.85775191]
[1721597427179,0.00084,67946.0,67945.0,0.97996418]
[1721597429118,0.00084,67946.0,67945.0,0.98834707]
[1721597429969,0.00084,67946.0,67945.0,0.8661348]
[1721597430127,0.00084,67946.0,67945.0,0.98834716]
[1721597430551,0.00084,67946.0,67945.0,0.69399216]
[1721597430828,0.00084,67946.0,67945.0,0.54681516]
[1721597432193,0.00084,67946.0,67945.0,0.69399216]
[1721597432591,0.00084,67946.0,67945.0,0.47031516]
[1721597433004,0.00084,67946.0,67945.0,0.40561516]
[1721597433210,0.00084,67946.0,67945.0,0.40561519]
[1721597436391,0.00084,67946.0,67945.0,0.40561998]
[1721597436603,0.00084,67946.0,67945.0,0.2834028]
[1721597436804,0.00084,67946.0,67945.0,0.40562139]
[1721597437452,0.06634,67946.0,67945.0,0.40562139]
[1721597438794,0.00084,67946.0,67945.0,0.40562139]
[1721597439254,0.502666,67946.0,67945.0,0.15021859]
[1721597439506,0.502666,67946.0,67945.0,0.028]
[1721597439749,0.208315,67946.0,67945.0,0.028]
[1721597440217,0.208315,67946.0,67945.0,0.014]
[1721597440445,0.208315,67946.0,67945.0,0.028]
[1721597440877,0.208315,67946.0,67945.0,0.014]
[1721597441093,0.208315,67946.0,67940.0,0.00839491]
[1721597441094,0.147178,67945.0,67940.0,0.00839491]
[1721597441328,0.147178,67945.0,67941.0,0.26925318]
[1721597441549,0.147181,67944.0,67941.0,0.14701991]
[1721597441778,0.06114,67946.0,67936.0,0.1]
[1721597442000,0.06114,67946.0,67935.0,0.1]
[1721597442001,0.147188,67940.0,67937.0,0.26925541]
[1721597442213,0.147188,67940.0,67938.0,0.1222355]
[1721597442432,0.14719,67939.0,67938.0,0.14701991]
[1721597442698,0.22599,67939.0,67938.0,0.26925864]
[1721597443089,0.22599,67939.0,67938.0,0.12223873]
[1721597443299,0.147195,67937.0,67936.0,0.005]
[1721597443522,0.213295,67937.0,67936.0,0.12724131]
[1721597444158,0.507685,67937.0,67936.0,0.12224131]
[1721597444789,0.213295,67937.0,67936.0,0.12224131]
[1721597445210,0.507685,67937.0,67936.0,0.12224131]
[1721597445425,0.507685,67937.0,67936.0,0.13624131]
[1721597445652,0.507685,67937.0,67936.0,0.15024291]
[1721597450736,0.441585,67937.0,67936.0,0.28944291]
[1721597451183,0.441585,67937.0,67936.0,0.21084291]
[1721597451411,0.441585,67937.0,67936.0,0.23524291]
[1721597452382,0.441585,67937.0,67936.0,0.113]
[1721597455325,0.147195,67937.0,67936.0,0.113]
[1721597460261,0.147195,67937.0,67936.0,0.23524292]
[1721597460734,0.441585,67937.0,67936.0,0.23524292]
[1721597461008,0.147195,67937.0,67936.0,0.23524292]
[1721597461947,0.147195,67937.0,67936.0,0.23524362]
[1721597462179,0.147195,67937.0,67936.0,0.113]
[1721597462410,0.147195,67937.0,67936.0,0.23524438]
[1721597462898,0.586285,67937.0,67936.0,0.23524438]
[1721597463595,0.586285,67937.0,67936.0,0.028]
[1721597463828,0.441585,67937.0,67936.0,0.1502447]
[1721597466612,0.441585,67937.0,67936.0,0.028]
[1721597466819,0.441585,67937.0,67936.0,0.15024541]
[1721597467237,0.441585,67937.0,67936.0,0.15116941]
[1721597468097,0.441585,67937.0,67936.0,0.14516941]
[1721597469810,0.441585,67937.0,67936.0,0.022924]
[1721597470037,0.441585,67937.0,67936.0,0.14516943]
[1721597472886,0.441585,67937.0,67936.0,0.022924]
[1721597473147,0.441585,67937.0,67936.0,0.20976586]
[1721597473360,0.441585,67937.0,67936.0,0.022924]
[1721597473559,0.441585,67937.0,67936.0,0.14516743]
[1721597474827,0.147195,67937.0,67936.0,0.14516743]
[1721597476107,0.294377,67940.0,67936.0,0.022924]
[1721597476302,0.147193,67938.0,67937.0,0.12224314]
[1721597476720,0.147193,67938.0,67937.0,0.11724314]
[1721597477334,0.148193,67938.0,67937.0,0.13124314]
[1721597477543,0.001,67938.0,67937.0,0.13124314]
[1721597478790,0.001,67938.0,67937.0,0.14524314]
[1721597479292,0.001,67938.0,67937.0,0.028]
[1721597481235,0.001,67938.0,67937.0,0.17501991]
[1721597481436,0.001,67938.0,67937.0,0.32151991]
[1721597483406,0.001,67938.0,67937.0,0.42151991]
[1721597484503,0.001,67938.0,67937.0,0.34041991]
[1721597486582,0.001,67938.0,67937.0,0.46264963]
[1721597486990,0.1406,67938.0,67937.0,0.25022972]
[1721597487410,0.1406,67938.0,67937.0,0.33522972]
[1721597487944,0.001,67938.0,67937.0,0.48224963]
[1721597488228,0.001,67938.0,67937.0,0.54714963]
[1721597489839,0.001,67938.0,67937.0,0.48224963]
[1721597490058,0.001,67938.0,67937.0,0.36001991]
[1721597493087,0.001,67938.0,67937.0,0.48225459]
[1721597493264,0.001,67938.0,67937.0,0.36001991]
[1721597494321,0.0616,67938.0,67937.0,0.128]
[1721597498140,0.0616,67938.0,67937.0,0.25023767]
[1721597499252,0.0616,67938.0,67937.0,0.25116166]
[1721597499460,0.06244,67938.0,67937.0,0.25116166]
[1721597499666,0.06244,67938.0,67937.0,0.128924]
[1721597499876,0.06244,67938.0,67937.0,0.25116166]
[1721597502318,0.06244,67938.0,67937.0,0.25116164]
[1721597503657,0.06044,67938.0,67937.0,0.25116164]
[1721597505539,0.06044,67938.0,67937.0,0.128924]
[1721597505743,0.06044,67938.0,67937.0,0.25116164]
[1721597507660,0.00084,67938.0,67937.0,0.25116164]
[1721597508695,0.00084,67938.0,67937.0,0.128924]
[1721597508844,0.00084,67938.0,67937.0,0.25116165]
[1721597511797,0.00084,67938.0,67937.0,0.128924]
[1721597511998,0.00084,67938.0,67937.0,0.25116164]
[1721597514892,0.00084,67938.0,67937.0,0.25116165]
[1721597518217,0.00084,67938.0,67937.0,0.128924]
[1721597518463,0.00084,67938.0,67937.0,0.25116164]
[1721597520819,0.00084,67938.0,67937.0,0.128924]
[1721597521031,0.00084,67938.0,67937.0,0.25116249]
[1721597521439,0.00084,67938.0,67937.0,0.25017525]
[1721597524033,0.00084,67938.0,67937.0,0.25017568]
[1721597525697,0.00084,67938.0,67937.0,0.25017568]
[1721597526824,0.00084,67938.0,67937.0,0.12793546]
[1721597527084,0.003634,67938.0,67937.0,0.25017567]
[1721597527334,0.00084,67938.0,67937.0,0.25017567]
[1721597529181,0.00084,67938.0,67937.0,0.39719558]
[1721597529863,0.00084,67938.0,67937.0,0.27495537]
[1721597530076,0.00084,67938.0,67937.0,0.39719525]
[1721597533139,0.00084,67938.0,67937.0,0.3971953]
[1721597533590,0.00084,67938.0,67937.0,0.39719529]
[1721597536102,0.00084,67938.0,67937.0,0.48009529]
[1721597536314,0.00084,67938.0,67937.0,0.48009454]
[1721597538059,0.00084,67938.0,67937.0,0.39719454]
[1721597539245,0.00084,67938.0,67937.0,0.27495537]
[1721597539449,0.00084,67938.0,67937.0,0.39719401]
[1721597542317,0.00084,67938.0,67937.0,0.27495537]
[1721597542525,0.00084,67938.0,67937.0,0.39719224]
[1721597542732,0.00084,67938.0,67937.0,0.27495537]
[1721597542935,0.00084,67938.0,67937.0,0.39719224]
[1721597545469,0.00084,67938.0,67937.0,0.27495537]
[1721597545676,0.00084,67938.0,67937.0,0.39718589]
[1721597548107,0.00084,67938.0,67937.0,0.68708089]
[1721597548316,0.00084,67938.0,67937.0,1.61450233]
[1721597548517,0.00084,67938.0,67937.0,1.60918354]
[1721597548716,0.00084,67938.0,67937.0,1.67029417]
[1721597549381,0.00084,67938.0,67937.0,1.71446928]
[1721597549588,0.00084,67938.0,67937.0,1.35607931]
[1721597549800,0.00084,67938.0,67937.0,1.37007931]
[1721597550379,0.00084,67938.0,67937.0,1.37009032]
[1721597550794,0.00084,67938.0,67937.0,1.35707886]
[1721597551003,0.00084,67938.0,67937.0,1.37007886]
[1721597551219,0.00084,67938.0,67937.0,1.66446886]
[1721597551452,0.00084,67938.0,67937.0,1.36290409]
[1721597551748,0.00084,67938.0,67937.0,1.6514584]
[1721597551928,0.00084,67938.0,67937.0,1.37106526]
[1721597552605,0.00084,67938.0,67937.0,1.32690031]
[1721597553198,0.00084,67938.0,67937.0,1.37106526]
[1721597553365,0.00084,67938.0,67937.0,1.62129031]
[1721597553569,0.00084,67938.0,67937.0,1.32690031]
[1721597554994,0.00084,67938.0,67937.0,1.32690228]
[1721597555391,0.00084,67938.0,67937.0,1.26578999]
[1721597555571,0.00084,67938.0,67937.0,1.3269022]
[1721597555987,0.00084,67938.0,67937.0,1.4119022]
[1721597558022,0.04642,67947.0,67943.0,0.085]
[1721597558237,0.07348942,67945.0,67944.0,0.26924447]
[1721597560606,0.07348942,67945.0,67944.0,0.28324447]
[1721597561021,0.21208942,67945.0,67944.0,0.28324447]
[1721597561238,0.1386,67945.0,67944.0,0.29424447]
[1721597561450,0.1386,67945.0,67944.0,0.29424487]
[1721597562539,0.1386,67945.0,67944.0,0.14722496]
[1721597564041,0.13944,67945.0,67944.0,0.14722496]
[1721597564532,0.13944,67945.0,67944.0,0.14723173]
[1721597565607,0.13944,67945.0,67944.0,0.15589269]
[1721597567712,0.13944,67945.0,67944.0,0.14722831]
[1721597568157,0.13944,67945.0,67944.0,0.14723171]
[1721597573816,0.13944,67945.0,67944.0,0.14723173]
[1721597576982,0.13944,67945.0,67944.0,0.025]
[1721597577210,0.13944,67945.0,67944.0,0.14723173]
[1721597579683,0.286617,67945.0,67944.0,0.14723173]
[1721597580165,0.286617,67945.0,67944.0,0.025]
[1721597580404,0.286617,67945.0,67944.0,0.14723826]
[1721597580637,0.286617,67945.0,67944.0,0.14723825]
[1721597581802,0.875327,67945.0,67944.0,0.14723825]
[1721597582061,0.9193899,67945.0,67944.0,0.025]
[1721597582330,0.875327,67945.0,67944.0,0.025]
[1721597583261,0.91938704,67945.0,67944.0,0.025]
[1721597585395,0.875327,67945.0,67944.0,0.025]
[1721597586117,0.91937854,67945.0,67944.0,0.025]
[1721597586343,0.875327,67945.0,67944.0,0.025]
[1721597591722,1.192682,67945.0,67944.0,0.025]
[1721597591960,1.32173345,67945.0,67944.0,0.025]
[1721597592187,1.277682,67945.0,67944.0,0.025]
[1721597592764,1.277682,67945.0,67944.0,0.014]
[1721597592979,1.277682,67945.0,67944.0,0.019]
[1721597593651,0.19585769,67945.0,67944.0,0.005]
[1721597593839,0.148017,67945.0,67944.0,0.005]
[1721597594106,0.211317,67945.0,67944.0,0.017]
[1721597594298,0.505672,67945.0,67944.0,0.017]
[1721597594736,0.883227,67945.0,67944.0,0.017]
[1721597596253,0.883227,67945.0,67944.0,0.017924]
[1721597600205,0.736727,67945.0,67944.0,0.017924]
[1721597601382,0.442372,67945.0,67944.0,0.017924]
[1721597607318,0.442372,67945.0,67944.0,0.14016763]
[1721597610672,0.442372,67945.0,67944.0,0.14016766]
[1721597614299,0.442372,67945.0,67944.0,0.27606766]
[1721597614300,0.00084,67945.0,67944.0,0.27606766]
[1721597616673,0.00084,67945.0,67944.0,0.27605805]
[1721597617138,0.00084,67945.0,67944.0,0.153824]
[1721597617367,0.00084,67945.0,67944.0,0.86461757]
[1721597617597,0.00084,67945.0,67944.0,0.57025757]
[1721597618467,0.00084,67945.0,67944.0,0.56525757]
[1721597618909,0.00084,67945.0,67944.0,0.57625757]
[1721597619553,0.00084,67945.0,67944.0,0.45402391]
[1721597619771,0.00084,67945.0,67944.0,0.57624624]
[1721597619986,0.00084,67945.0,67944.0,0.56424624]
[1721597620620,0.00084,67945.0,67944.0,0.57824624]
[1721597621271,0.00084,67945.0,67944.0,0.58665054]
[1721597621484,0.00084,67945.0,67944.0,0.88101054]
[1721597622331,0.00084,67945.0,67944.0,0.86701054]
[1721597622755,0.00084,67945.0,67944.0,1.45573054]
[1721597622968,0.00084,67945.0,67944.0,1.5557241]
[1721597623184,0.00084,67945.0,67944.0,1.79061767]
[1721597623556,0.00084,67945.0,67944.0,1.80461767]
[1721597623749,0.00084,67945.0,67944.0,1.75304756]
[1721597623981,0.00084,67945.0,67944.0,1.74204756]
[1721597624333,0.00084,67945.0,67944.0,1.80461739]
[1721597624550,0.00084,67945.0,67944.0,1.79061739]
[1721597624731,0.00084,67945.0,67944.0,1.77961739]
[1721597625147,0.00084,67945.0,67944.0,1.5727241]
[1721597625944,0.00084,67945.0,67944.0,1.45050821]
[1721597626103,0.00084,67945.0,67944.0,1.57272016]
[1721597632290,0.00084,67945.0,67944.0,1.57271988]
[1721597632484,0.00084,67945.0,67944.0,1.21785988]
[1721597632687,0.00084,67945.0,67944.0,1.30285988]
[1721597633748,0.00084,67945.0,67944.0,1.36745988]
[1721597634583,0.00084,67945.0,67944.0,0.84809988]
[1721597635008,0.00084,67945.0,67944.0,0.93309988]
[1721597635207,0.00084,67945.0,67944.0,0.81088821]
[1721597635414,0.00084,67945.0,67944.0,0.9331012]
[1721597637643,0.00084,67945.0,67944.0,1.0726012]
[1721597638433,0.00084,67945.0,67944.0,0.95038821]
[1721597638663,0.00084,67945.0,67944.0,1.07260118]
[1721597642272,0.00084,67945.0,67944.0,1.24599101]
[1721597642507,0.00084,67945.0,67944.0,1.06267156]
[1721597642946,0.00084,67945.0,67944.0,1.24599101]
[1721597644104,0.00084,67945.0,67944.0,1.11642063]
[1721597647176,0.00084,67945.0,67944.0,0.81088821]
[1721597647403,0.00084,67945.0,67944.0,1.17752775]
[1721597653176,0.00084,67945.0,67944.0,1.11642116]
[1721597653387,0.00084,67945.0,67944.0,1.76624775]
[1721597653594,0.00084,67945.0,67944.0,1.90544775]
[1721597653837,0.00084,67945.0,67944.0,1.61108775]
[1721597656365,0.00084,67945.0,67944.0,1.24444821]
[1721597656579,0.00084,67945.0,67944.0,1.61109024]
[1721597662562,0.00084,67945.0,67944.0,1.30555533]
[1721597662834,0.00084,67945.0,67944.0,1.61109093]
[1721597663060,0.00084,67945.0,67944.0,1.61109081]
[1721597664131,0.00084,67945.0,67944.0,1.54979081]
[1721597665845,0.00084,67945.0,67944.0,1.36646957]
[1721597666062,0.00084,67945.0,67944.0,1.54979093]
[1721597666285,0.00084,67945.0,67944.0,1.5939389]
[1721597668289,0.00084,67945.0,67944.0,1.54979093]
[1721597668719,0.00084,67945.0,67944.0,1.89415093]
[1721597668935,0.00084,67945.0,67944.0,1.9573494]
[1721597669803,0.00084,67945.0,67944.0,2.0073494]